[Event "4th Tata Steel India Rapid Open 2022"]
[Site "Kolkota"]
[Date "2022.11.30"]
[Round "6.5"]
[White "Vidit, Santosh Gujrathi"]
[Black "Gukesh D"]
[Result "1/2-1/2"]
[ECO "B10"]
[WhiteElo "2724"]
[BlackElo "2725"]
[Annotator "TA"]
[PlyCount "152"]
[EventDate "2022.11.29"]
[EventType "tourn"]
[EventCountry "IND"]
[SourceTitle "playchess.com"]
[Source "ChessBase"]
[SourceQuality "1"]
[TimeControl "900+10"]

{[%evp 9,152,20,16,9,31,54,59,10,12,0,5,0,12,0,33,-24,-22,-15,-16,-25,-26,-6,-9,-27,-17,-29,-18,-37,0,-41,-41,-41,-27,-33,-41,-48,-64,-55,-52,-45,0,-35,-25,-31,-35,-53,-22,-37,-40,-45,-39,-46,0,-12,-20,-37,-49,-128,-93,-115,37,39,31,20,13,13,13,13,13,8,9,0,0,0,0,0,0,0,0,0,0,0,0,-8,-8,-8,-8,-8,-8,-8,-8,-8,-8,-8,-8,-8,-8,-8,-8,-8,0,-8,0,-8,0,0,0,0,0,-8,-8,-8,-8,-8,-8,-8,-8,-59,-8,-43,-8,-8,-8,-70,-70,-70,-70,-73,-73,-59,-8,-73,-68,-72,-8,-8,-8,-8,-8,-8,-8,-8,-8,-8,-8]} 1. e4 {[%emt 0:00:03]} c6 {[%emt 0:00:21]} 2. Nf3 {[%emt 0:00:45]} d5 {[%emt 0:00:02]} 3. d3 {[%emt 0:00:02]} Qc7 {[%emt 0:00:47]} 4. Nc3 {[%emt 0:00:25]} dxe4 {[%emt 0:00:03]} 5. dxe4 {[%emt 0:00:02]} e5 {[%emt 0:00:03]} 6. Bc4 {[%emt 0:00:13] B10: Caro-Kann: 2 d3 and 2 c4.} Nf6 {[%emt 0:01:17]} 7. Ng5 {[%emt 0:00:26]} Bg4 {[%emt 0:00:07]} 8. f3 {[%emt 0:01:11]} (8. Bxf7+ $14 Qxf7 9. Nxf7 Bxd1 10. Nxh8 Bxc2 11. f3) 8... Bh5 $11 {[%emt 0:00:03]} 9. Be3 {[%emt 0:01:04] [#]} Nbd7 $146 {[%emt 0:00:36]} ({Predecessor:} 9... h6 10. Nh3 Nbd7 11. Nf2 O-O-O 12. Nd3 Nc5 13. Qe2 Ncxe4 14. Nxe4 Nxe4 15. g4 Nd6 {1-0 (51) Widmann,V (1995)-Kurz,R (2060) Hockenheim 1994}) 10. a4 {[%emt 0:00:43] Against b5} Bb4 {[%emt 0:02:40]} 11. Qd2 {[%emt 0:03:58]} O-O-O {[%emt 0:02:24]} 12. Qf2 {[%emt 0:00:56]} (12. Nxf7 $2 Bxf7 13. Bxf7 Nf8 $19) (12. Bxa7 Nc5 13. Qe3 b6 $17) (12. Bxf7 $2 Nf8 13. Qf2 Bxf7 $19) (12. Qe2 $14) 12... h6 {[%emt 0:02:10] Threatens to win with ...Qa5.} 13. Nxf7 {[%emt 0:01:28]} Bxf7 {[%emt 0:00:05]} 14. Bxf7 {[%emt 0:00:02]} Rhf8 {[%emt 0:00:06][%cal Bh8f8,Bf8f6,Bf6d6,Bd6d5][%mdl 32]} 15. Be6 {[%emt 0:01:18] [#]} Nxe4 $1 {[%emt 0:00:39][%mdl 64]} 16. Qh4 {[%emt 0:00:02]} Bxc3+ {[%emt 0:00:46]} 17. bxc3 {[%emt 0:00:03]} Nxc3 {[%emt 0:00:02][%cal Oe5e4]} 18. a5 {[%emt 0:02:51] Prevents e4.} Rf6 {[%emt 0:02:43]} (18... e4 {feels hotter.} 19. f4 g5 20. Qxh6 Qd6) 19. Bh3 {[%emt 0:01:01] This pair of bishops is nice.} (19. Qc4 $5 {[%cal Re6d7]} Nd5 20. Bxd7+ Qxd7 21. Bxa7 $11) 19... Kb8 {[%emt 0:01:28]} 20. Qf2 {[%emt 0:00:02]} c5 {[%emt 0:00:58]} 21. O-O {[%emt 0:00:37]} Nd5 {[%emt 0:00:19]} 22. Rfd1 {[%emt 0:00:39]} Rd6 {[%emt 0:00:02]} 23. Re1 {[%emt 0:00:22]} Nxe3 {[%emt 0:00:56]} 24. Qxe3 {[%emt 0:00:01]} Rd5 {[%emt 0:00:09]} 25. a6 {[%emt 0:00:32]} b6 {[%emt 0:00:16]} 26. Be6 {[%emt 0:00:08]} Rd6 {[%emt 0:00:01]} 27. Bf5 {[%emt 0:00:31]} Re8 {[%emt 0:00:07]} 28. Rad1 {[%emt 0:00:10]} Nf6 {[%emt 0:00:02]} 29. Qb3 {[%emt 0:00:14]} Red8 {[%emt 0:00:25]} (29... Qe7 {keeps more tension.} 30. Rxd6 Qxd6 31. c3 Kc7) 30. Rxd6 {[%emt 0:00:02]} Rxd6 {[%emt 0:00:09]} (30... Qxd6 $15 {was preferrable.} 31. Qf7 Qc7) 31. Qe3 {[%emt 0:00:08]} b5 {[%emt 0:00:20]} 32. Qxe5 {[%emt 0:00:06]} Rxa6 {[%emt 0:00:02]} 33. Qxc7+ {[%emt 0:00:03]} (33. g4 $15) 33... Kxc7 {[%emt 0:00:01][%mdl 4096] Endgame KRB-KRN} 34. Re7+ {[%emt 0:00:02] [#]} Kd8 $2 {[%emt 0:00:13]} ({Black should play} 34... Kb8 $1 $17 {Hoping for ...Rd6.} 35. f4 Rd6) 35. Rxg7 $14 {[%emt 0:00:02]} b4 {[%emt 0:00:13]} 36. g4 {[%emt 0:00:06]} c4 $1 {[%emt 0:00:18]} 37. Rb7 {[%emt 0:00:10]} Rb6 {[%emt 0:00:16]} 38. Rxa7 {[%emt 0:00:01]} (38. Rxb6 {simplifies} axb6 39. Kf2 Ke7 40. Ke3) 38... b3 {[%emt 0:00:01]} 39. cxb3 {[%emt 0:00:03]} cxb3 {[%emt 0:00:30]} 40. Ra1 {[%emt 0:00:49]} (40. Kf2 {is interesting.} b2 41. Bb1 Nd5 42. Ra3) 40... Ke7 {[%emt 0:00:00]} 41. Re1+ {[%emt 0:00:12]} Kf8 {[%emt 0:00:05]} 42. Rd1 {[%emt 0:00:15]} Rb5 {[%emt 0:00:02]} 43. Kf2 {[%emt 0:00:16]} Nd5 {[%emt 0:00:02]} 44. Bb1 {[%emt 0:00:09]} Nc3 {[%emt 0:00:13]} 45. Rg1 {[%emt 0:00:14]} Ra5 {[%emt 0:00:15]} 46. Bd3 {[%emt 0:00:09]} Ra2+ {[%emt 0:00:09]} 47. Ke3 {[%emt 0:00:03]} b2 {[%emt 0:00:18] Against Rc1} 48. h4 {[%emt 0:00:16]} Ra1 {[%emt 0:00:12]} 49. Rg2 {[%emt 0:00:11]} b1=Q {[%emt 0:00:12]} (49... b1=R 50. Bxb1 Rxb1 51. Kd4 Nb5+ 52. Ke5 $15) (49... Ra3 {with more complications.} 50. Kf4 Ra4+ 51. Kg3 Rb4) 50. Bxb1 {[%emt 0:00:02]} Rxb1 $11 {[%emt 0:00:01] KRN-KR} 51. Rc2 {[%emt 0:00:08]} Nd5+ {[%emt 0:00:03]} 52. Ke4 {[%emt 0:00:04]} Ne7 {[%emt 0:00:08] Prevents Rc8+.} 53. h5 {[%emt 0:00:16]} Re1+ {[%emt 0:00:19]} 54. Kf4 {[%emt 0:00:04]} Kf7 {[%emt 0:00:05]} 55. Rc5 {[%emt 0:00:10]} Rh1 {[%emt 0:00:20]} 56. Ra5 {[%emt 0:00:09]} Rd1 {[%emt 0:00:09]} 57. Ra6 {[%emt 0:00:18]} Kg7 {[%emt 0:00:06]} 58. Ra7 {[%emt 0:00:05]} Re1 {[%emt 0:00:10]} 59. g5 {[%emt 0:00:05]} hxg5+ {[%emt 0:00:02]} 60. Kxg5 {[%emt 0:00:02]} Rg1+ {[%emt 0:00:06]} 61. Kf4 {[%emt 0:00:03]} Kf6 {[%emt 0:00:05]} 62. Ra6+ {[%emt 0:00:03]} Kf7 {[%emt 0:00:02]} 63. h6 {[%emt 0:00:20]} (63. Ra7 $11) 63... Re1 {[%emt 0:00:12]} (63... Rc1 $15) 64. Kg4 {[%emt 0:00:17]} Kg8 {[%emt 0:00:18]} 65. Kg5 {[%emt 0:00:16]} Rg1+ {[%emt 0:00:04]} 66. Kf4 {[%emt 0:00:04]} (66. Kh5 $11) 66... Ng6+ $15 {[%emt 0:00:15]} 67. Ke4 {[%emt 0:00:11]} Kh7 {[%emt 0:00:03]} 68. f4 {[%emt 0:00:09]} ({Much weaker is} 68. Ra7+ Kxh6 69. Ra4 Rf1 $11) 68... Rf1 {[%emt 0:00:27]} (68... Kxh6 69. f5 $11) 69. Rf6 {[%emt 0:00:34]} Re1+ {[%emt 0:00:02]} (69... Kxh6 70. f5 $11) ({Black should try} 69... Ne7 $15) 70. Kd4 {[%emt 0:00:10]} (70. Kf3 $11 {keeps the balance.}) 70... Re7 $17 {[%emt 0:00:20]} ({But not} 70... Kxh6 71. f5 $11) 71. f5 {[%emt 0:00:05]} Nh8 {[%emt 0:00:02]} ({Reject} 71... Nf4 72. Rb6 $11) (71... Nh4 $17) 72. Re6 $11 {[%emt 0:00:06] The position is equal.} Ra7 {[%emt 0:00:43]} 73. Ke5 {[%emt 0:00:06]} Ra5+ {[%emt 0:00:00]} 74. Kf4 {[%emt 0:00:07]} Ra1 {[%emt 0:00:03]} 75. Rf6 $1 {[%emt 0:00:19]} Rf1+ {[%emt 0:00:27]} 76. Kg5 {[%emt 0:00:08]} Rg1+ {[%emt 0:00:00] Weighted Error Value: White=0.10 (very precise) /Black=0.11 (very precise)} 1/2-1/2

[Event "4th Tata Steel India Rapid Open 2022"]
[Site "Kolkota"]
[Date "2022.12.01"]
[Round "7.1"]
[White "Sethuraman, S.P."]
[Black "Vidit, Santosh Gujrathi"]
[Result "1/2-1/2"]
[ECO "B67"]
[WhiteElo "2643"]
[BlackElo "2724"]
[Annotator "TA"]
[PlyCount "245"]
[EventDate "2022.11.29"]
[EventType "tourn"]
[EventCountry "IND"]
[SourceTitle "playchess.com"]
[Source "ChessBase"]
[SourceQuality "1"]
[TimeControl "900+10"]

{[%evp 111,245,0,0,0,0,0,0,0,0,-377,0,0,0,0,0,0,0,0,0,0,0,0,0,0,0,0,0,0,0,0,0,0,0,0,0,0,0,0,0,0,0,-1,-1,-1,-1,-1,-1,-1,-1,-1,-1,-1,-1,-1,-1,-1,-1,-8,-8,-8,-8,-8,-8,-8,-8,-8,-8,-8,0,-8,-8,-8,-8,-8,-8,-8,-8,-8,-8,-8,-8,-8,-8,-8,-8,-8,-8,-8,-8,-8,-8,0,-8,-8,-8,-8,-8,-8,-8,-8,-8,-8,-8,-8,-8,-8,-8,-8,-8,-8,-8,-8,-8,-8,-8,-8,0,-8,0,-8,0,0,0,-8,-8,-8,0,0,0,0,0,0,0,-8,-8,-8]} 1. e4 {[%emt 0:00:03]} c5 {[%emt 0:00:04]} 2. Nf3 {[%emt 0:00:03]} d6 {[%emt 0:00:02]} 3. d4 {[%emt 0:00:02]} cxd4 {[%emt 0:00:03]} 4. Nxd4 {[%emt 0:00:03]} Nf6 {[%emt 0:00:03]} 5. Nc3 {[%emt 0:00:03]} Nc6 {[%emt 0:00:02]} 6. Bg5 {[%emt 0:00:10]} e6 {[%emt 0:00:05]} 7. Qd2 {[%emt 0:00:13]} a6 {[%emt 0:00:05]} 8. O-O-O {[%emt 0:00:04]} Bd7 {[%emt 0:00:06]} 9. f3 {[%emt 0:00:06]} Nxd4 {[%emt 0:00:12]} 10. Qxd4 {[%emt 0:00:03]} Be7 {[%emt 0:00:02]} 11. Kb1 {[%emt 0:00:27]} Qc7 {[%emt 0:00:12]} 12. h4 {[%emt 0:00:14]} b5 {[%emt 0:00:23]} 13. Qd2 {[%emt 0:00:07]} b4 {[%emt 0:01:10]} 14. Ne2 {[%emt 0:00:03]} a5 {[%emt 0:00:15]} 15. c4 {[%emt 0:00:03]} bxc3 {[%emt 0:03:41]} 16. Nxc3 {[%emt 0:00:03]} Rb8 {[%emt 0:00:51]} 17. a4 {[%emt 0:01:00]} O-O {[%emt 0:01:08]} 18. Nb5 {[%emt 0:02:33]} Qb7 {[%emt 0:00:04]} 19. Bd3 {[%emt 0:01:44]} d5 {[%emt 0:03:02]} 20. e5 {[%emt 0:02:21]} Bb4 {[%emt 0:00:02]} 21. Qf2 {[%emt 0:02:32]} Ne8 {[%emt 0:00:08]} 22. Rc1 {[%emt 0:01:26]} Bxb5 {[%emt 0:00:26]} 23. Bxb5 {[%emt 0:01:09]} Nc7 {[%emt 0:00:02]} 24. Bc6 {[%emt 0:00:12]} Qa6 {[%emt 0:00:09]} 25. Ka1 {[%emt 0:00:55]} h6 {[%emt 0:02:47]} 26. Be3 {[%emt 0:00:06]} Be7 {[%emt 0:00:59]} 27. Qf1 {[%emt 0:01:47]} Rb3 {[%emt 0:00:14]} 28. Qxa6 {[%emt 0:00:34]} Nxa6 {[%emt 0:00:01]} 29. Bd4 {[%emt 0:00:13]} Rd3 {[%emt 0:01:57]} 30. Bc3 {[%emt 0:00:34]} Nc5 {[%emt 0:00:01]} 31. Rcd1 {[%emt 0:00:21]} Rxd1+ {[%emt 0:01:07]} 32. Rxd1 {[%emt 0:00:02]} Bxh4 {[%emt 0:00:17]} 33. Ka2 {[%emt 0:00:01]} Rc8 {[%emt 0:00:21]} 34. Bb5 {[%emt 0:00:01]} Bd8 {[%emt 0:00:30]} 35. Bd4 {[%emt 0:01:04]} Bb6 {[%emt 0:00:03]} 36. Ka3 {[%emt 0:00:22]} Kf8 {[%emt 0:00:23]} 37. b4 {[%emt 0:00:03]} axb4+ {[%emt 0:00:01]} 38. Kxb4 {[%emt 0:00:01]} Rc7 {[%emt 0:00:18]} 39. a5 {[%emt 0:00:06]} Bxa5+ {[%emt 0:00:09]} 40. Kxa5 {[%emt 0:00:02]} Nb3+ {[%emt 0:00:01]} 41. Kb6 {[%emt 0:00:25]} Rc2 {[%emt 0:00:07]} 42. Ba4 {[%emt 0:00:26]} Nxd4 {[%emt 0:00:10]} 43. Bxc2 {[%emt 0:00:10]} Nxc2 {[%emt 0:00:01]} 44. g4 {[%emt 0:00:05]} Ne3 {[%emt 0:00:12]} 45. Re1 {[%emt 0:00:07]} Ng2 {[%emt 0:00:26]} 46. Ra1 {[%emt 0:00:07]} g5 {[%emt 0:00:07]} 47. Kc5 {[%emt 0:00:07]} Nf4 {[%emt 0:00:09]} 48. Kd4 {[%emt 0:00:26]} Kg7 {[%emt 0:00:03]} 49. Ra8 {[%emt 0:00:03]} h5 {[%emt 0:00:21]} 50. gxh5 {[%emt 0:00:05]} Nxh5 {[%emt 0:00:01]} 51. Ra7 {[%emt 0:00:16]} Kg6 {[%emt 0:00:15]} 52. Rb7 {[%emt 0:00:09]} Nf4 {[%emt 0:00:10]} 53. Ra7 {[%emt 0:00:06]} Ng2 {[%emt 0:00:08]} 54. Rb7 {[%emt 0:00:03]} Nh4 {[%emt 0:00:06]} 55. Ke3 {[%emt 0:00:01]} Nf5+ {[%emt 0:00:25]} 56. Kd3 {[%emt 0:00:02]} Ng3 {[%emt 0:00:02]} 57. Kd4 {[%emt 0:00:03]} Ne2+ {[%emt 0:00:01]} 58. Ke3 {[%emt 0:00:02]} Nf4 {[%emt 0:00:02]} 59. Kd4 {[%emt 0:00:02]} Ng2 {[%emt 0:00:16]} 60. Ra7 $2 {[%emt 0:00:08][%mdl 8192] [#]} (60. Kd3 $11) 60... Nh4 $2 {[%emt 0:00:04]} (60... Ne1 $1 $19 61. Ke3 Nc2+ 62. Kf2 Nb4) 61. Ke3 $11 {[%emt 0:00:02]} Nf5+ {[%emt 0:00:08]} 62. Kd3 {[%emt 0:00:01]} Nh6 {[%emt 0:00:01]} 63. Ra8 {[%emt 0:00:19]} Kg7 {[%emt 0:00:02]} 64. Rb8 {[%emt 0:00:10]} Nf5 {[%emt 0:00:03]} 65. Rc8 {[%emt 0:00:20]} Ne7 {[%emt 0:00:13]} 66. Rc7 {[%emt 0:00:02]} Ng6 {[%emt 0:00:02]} 67. Kd4 {[%emt 0:00:01]} Nh4 {[%emt 0:00:05]} 68. Ke3 {[%emt 0:00:04]} Kg6 {[%emt 0:00:03]} 69. Ra7 {[%emt 0:00:08]} Nf5+ {[%emt 0:01:08]} 70. Kd3 {[%emt 0:00:02]} Nh6 {[%emt 0:00:01]} 71. Ra8 {[%emt 0:00:11]} g4 {[%emt 0:00:01]} 72. fxg4 {[%emt 0:00:41]} (72. Ke2 {with more complications.} g3 73. f4 g2 74. Kf2) 72... Nxg4 {[%emt 0:00:10]} 73. Kd4 {[%emt 0:00:01]} Kf5 {[%emt 0:00:08]} 74. Rh8 {[%emt 0:00:09]} f6 {[%emt 0:00:34]} 75. exf6 {[%emt 0:00:06]} Nxf6 {[%emt 0:00:02]} 76. Ke3 {[%emt 0:00:21]} e5 {[%emt 0:00:00]} 77. Rd8 {[%emt 0:00:02]} Ke6 {[%emt 0:00:05]} 78. Kd3 {[%emt 0:00:10]} Nd7 {[%emt 0:00:02]} 79. Rc8 {[%emt 0:00:17]} Kd6 {[%emt 0:00:01]} 80. Rd8 {[%emt 0:00:14]} Kc7 {[%emt 0:00:02]} 81. Re8 {[%emt 0:00:08]} Nc5+ {[%emt 0:00:01]} 82. Kc3 {[%emt 0:00:27]} Kd6 {[%emt 0:00:01]} 83. Rd8+ {[%emt 0:00:27]} Ke6 {[%emt 0:00:01]} 84. Kd2 {[%emt 0:00:10]} d4 {[%emt 0:00:04]} 85. Ke2 {[%emt 0:00:22]} Kf5 {[%emt 0:00:07]} 86. Rh8 {[%emt 0:00:26]} Ne6 {[%emt 0:00:20]} 87. Re8 {[%emt 0:00:13]} e4 {[%emt 0:00:07]} 88. Re7 {[%emt 0:00:06]} Nf4+ {[%emt 0:00:17]} 89. Kd2 {[%emt 0:00:01]} Ne6 {[%emt 0:00:15]} 90. Re8 {[%emt 0:00:09]} Ke5 {[%emt 0:00:01]} 91. Re7 {[%emt 0:00:04]} Kd6 {[%emt 0:00:27]} 92. Re8 {[%emt 0:00:02]} Kd5 {[%emt 0:00:01]} 93. Re7 {[%emt 0:00:05]} Ng5 {[%emt 0:00:52]} 94. Re8 {[%emt 0:00:12]} Nf7 {[%emt 0:00:23]} 95. Ke2 {[%emt 0:00:07]} Nd6 {[%emt 0:00:09]} (95... d3+ {feels hotter.} 96. Ke3 Nd6 97. Rd8 Ke6) 96. Rd8 {[%emt 0:00:02]} Ke6 {[%emt 0:00:14]} 97. Ra8 {[%emt 0:00:20]} Ke5 {[%emt 0:00:13]} 98. Ra5+ {[%emt 0:00:07]} Kf4 {[%emt 0:00:05]} 99. Rd5 {[%emt 0:00:02]} Nf5 {[%emt 0:00:10]} 100. Rd8 {[%emt 0:00:02]} Ke5 {[%emt 0:00:19]} 101. Re8+ {[%emt 0:00:07]} Kd5 {[%emt 0:00:01]} 102. Rd8+ {[%emt 0:00:01]} Nd6 {[%emt 0:00:05]} 103. Rd7 {[%emt 0:00:11]} Ke6 {[%emt 0:00:12]} 104. Rd8 {[%emt 0:00:01]} Ke5 {[%emt 0:00:00]} 105. Rd7 {[%emt 0:00:19]} Nc4 {[%emt 0:00:20]} 106. Rd8 {[%emt 0:00:16]} Nb6 {[%emt 0:00:16]} (106... d3+ {simplifies} 107. Rxd3 exd3+ 108. Kxd3 Kd5) 107. Kd2 {[%emt 0:00:25]} Na4 {[%emt 0:00:07]} (107... d3 {is more complex.} 108. Kc3 Kf4 109. Rd6 Na4+) 108. Re8+ {[%emt 0:00:03]} Kd5 {[%emt 0:00:01]} 109. Rd8+ {[%emt 0:00:02]} Kc4 {[%emt 0:00:01]} 110. Rc8+ {[%emt 0:00:25]} Nc5 {[%emt 0:00:01]} 111. Re8 {[%emt 0:00:15]} Kd5 {[%emt 0:00:12]} 112. Rd8+ {[%emt 0:00:02]} Ke5 {[%emt 0:00:01]} 113. Re8+ {[%emt 0:00:01]} Ne6 {[%emt 0:00:00]} 114. Ke2 {[%emt 0:00:20]} e3 {[%emt 0:00:17]} 115. Re7 {[%emt 0:00:23]} Kd5 {[%emt 0:00:05]} 116. Re8 $1 {[%emt 0:00:08]} Ke5 {[%emt 0:00:23]} 117. Kd3 {[%emt 0:00:19]} Kd6 {[%emt 0:00:30]} 118. Rh8 {[%emt 0:00:17]} Ke5 {[%emt 0:00:24]} 119. Re8 {[%emt 0:00:02]} Kd5 {[%emt 0:00:00]} 120. Ke2 {[%emt 0:00:05]} Nf4+ {[%emt 0:00:17]} 121. Kf3 {[%emt 0:00:02]} Nd3 {[%emt 0:00:02]} 122. Rxe3 {[%emt 0:00:02]} dxe3 {[%emt 0:00:02]} 123. Kxe3 {[%emt 0:00:02]} 1/2-1/2

[Event "4th Tata Steel India Rapid Open 2022"]
[Site "Kolkota"]
[Date "2022.12.01"]
[Round "7.2"]
[White "So, Wesley"]
[Black "Abdusattorov, Nodirbek"]
[Result "0-1"]
[ECO "D32"]
[WhiteElo "2760"]
[BlackElo "2713"]
[Annotator "TA"]
[PlyCount "134"]
[EventDate "2022.11.29"]
[EventType "tourn"]
[EventCountry "IND"]
[SourceTitle "playchess.com"]
[Source "ChessBase"]
[SourceQuality "1"]
[TimeControl "900+10"]

{[%evp 23,134,0,9,10,22,23,41,50,60,0,0,-4,-10,-12,0,-12,-13,-13,-15,-235,-224,-233,-177,-189,-193,-198,-213,-218,-184,-175,-172,-162,-164,-168,-138,-138,-117,-133,-131,-150,-150,-152,-153,-217,-227,-283,-279,-292,-292,-291,-288,-281,-204,-281,-281,-361,-317,-388,-369,-410,-402,-403,-343,-363,-333,-397,-403,-449,-452,-528,-490,-493,-500,-479,-494,-556,-556,-556,-556,-1114,-1610,-1597,-609,-652,-602,-594,-1568,-1566,-1559,-1373,-1381,-1280,-1250,-1376,-1027,-29974,-29976,-2266,-2037,-29979,-29980,-29980,-29981,-29981,-29982,-29982,-29983,-29983,-29984,-29984,-29982,-29977,-606]} 1. d4 {[%emt 0:00:02]} Nf6 {[%emt 0:00:04]} 2. c4 {[%emt 0:00:02]} e6 {[%emt 0:00:01]} 3. Nc3 {[%emt 0:00:03]} Bb4 {[%emt 0:00:05]} 4. e3 {[%emt 0:00:06]} O-O {[%emt 0:00:06]} 5. Bd3 {[%emt 0:00:02]} c5 {[%emt 0:01:06]} 6. Nf3 {[%emt 0:00:09]} d5 {[%emt 0:00:03]} 7. cxd5 {[%emt 0:00:05]} exd5 {[%emt 0:00:08]} 8. dxc5 {[%emt 0:00:04]} Bxc5 {[%emt 0:00:40]} 9. O-O {[%emt 0:00:12]} Nc6 {[%emt 0:00:07]} 10. b3 {[%emt 0:00:57]} Bg4 {[%emt 0:01:19]} 11. Bb2 {[%emt 0:00:02]} a6 {[%emt 0:00:37]} 12. Be2 {[%emt 0:00:12]} Re8 {[%emt 0:01:30]} 13. Rc1 {[%emt 0:01:35] D32: Tarrasch Defence: Sidelines and lines without g3.} Bd6 {[%emt 0:01:32]} 14. h3 {[%emt 0:00:29] [#]} Bxf3 $146 {[%emt 0:00:28]} ({Predecessor:} 14... Bh5 15. Nh4 Bxe2 16. Nxe2 Ne4 17. Nf5 Bf8 18. Ned4 Qg5 19. h4 Qg6 20. h5 Qg5 21. f4 Qd8 22. Nxc6 bxc6 23. Rxc6 {0-1 (34) Wagner,D (2572)-Ivic,V (2581) Chess.com INT 2021}) 15. Bxf3 {[%emt 0:00:02] White is slightly better.} Be5 {[%emt 0:00:00]} 16. Rc2 {[%emt 0:01:51]} (16. Bxd5 $2 Nxd5 17. Qxd5 Qxd5 18. Nxd5 Bxb2 $19) (16. Ba1 $14) 16... d4 $11 {[%emt 0:04:25]} 17. exd4 {[%emt 0:05:59]} Nxd4 {[%emt 0:00:26]} 18. Rc1 {[%emt 0:00:02]} Qa5 {[%emt 0:01:39]} 19. Na4 {[%emt 0:01:31]} Rad8 {[%emt 0:01:41]} 20. Rc5 {[%emt 0:01:21]} (20. Bxb7 $2 Ne2+ $1 {[%mdl 512]} 21. Qxe2 Bh2+ $1 {[%mdl 512]} 22. Kxh2 Rxe2 $19) 20... b5 {[%emt 0:00:02] Hoping for ...Nxf3+.} 21. Bc3 $2 {[%emt 0:00:15] [#] White is now going downhill.} (21. Rxe5 $1 $11 Rxe5 22. Bc3 Nxf3+ 23. Qxf3) 21... Ne2+ $1 $19 {[%emt 0:00:01][%mdl 512]} 22. Bxe2 {[%emt 0:01:53]} Bxc3 {[%emt 0:00:03]} 23. Nxc3 {[%emt 0:00:01]} Rxd1 {[%emt 0:00:02]} 24. Rxd1 {[%emt 0:00:01]} Qa3 {[%emt 0:00:52]} 25. Rc7 {[%emt 0:00:18]} h6 {[%emt 0:00:53]} 26. Bf3 {[%emt 0:00:07]} Qb2 {[%emt 0:00:33]} 27. Nd5 {[%emt 0:00:23]} Ne4 {[%emt 0:00:37]} ({Worse is} 27... Qxa2 28. Nxf6+ gxf6 29. Bd5 $17) 28. Ne7+ {[%emt 0:00:33]} Kf8 {[%emt 0:00:01] Really sharp!} 29. Bxe4 {[%cal Oe7c6] aiming for Nc6!} Rxe7 {[%emt 0:00:00]} 30. Rc2 {[%emt 0:00:58]} Qe5 {[%emt 0:00:05]} 31. Bf3 {[%emt 0:00:11]} g6 {[%emt 0:00:12]} 32. Re2 {[%emt 0:00:17]} Qc5 {[%emt 0:00:01] Threatens to win with ...Rxe2.} 33. Rxe7 {[%emt 0:00:12]} (33. Red2 $17) 33... Kxe7 $17 {[%emt 0:00:01][%mdl 4096] Endgame KQ-KRB} ({Inferior is} 33... Qxe7 34. Kf1) 34. Re1+ {[%emt 0:00:14]} Kd6 {[%emt 0:00:00]} 35. Re2 {[%emt 0:00:02]} Qc1+ {[%emt 0:00:11]} 36. Kh2 {[%emt 0:00:01]} Qf4+ {[%emt 0:00:01]} 37. Kg1 {[%emt 0:00:01]} h5 {[%emt 0:00:08][%cal Bh6h5,Bh5h4][%mdl 32]} 38. Bb7 {[%emt 0:00:07]} Kc7 {[%emt 0:00:10]} 39. Bd5 {[%emt 0:00:23]} h4 {[%emt 0:00:10] Against g3} 40. Rc2+ {[%emt 0:00:09]} Kb6 {[%emt 0:00:31]} 41. Rc6+ {[%emt 0:00:26] [#]} Ka7 $1 {[%emt 0:00:13]} 42. Bf3 {[%emt 0:00:08]} Qe5 {[%emt 0:00:13] And now ...Qa1+ would win.} 43. Rc2 {[%emt 0:00:10]} f5 {[%emt 0:00:05][%cal Bf7f5,Bf5g4,Bg4g3][%mdl 32]} 44. Re2 {[%emt 0:00:03]} Qd6 {[%emt 0:00:26]} 45. Rc2 {[%emt 0:00:07]} g5 {[%emt 0:00:06]} 46. Be2 {[%emt 0:00:14]} Qd4 {[%emt 0:00:12]} 47. Bf1 {[%emt 0:00:13]} g4 {[%emt 0:00:05]} 48. hxg4 {[%emt 0:00:27]} fxg4 {[%emt 0:00:01]} 49. a4 {[%emt 0:00:00]} Kb6 {[%emt 0:00:13] Strongly threatening ...g3.} 50. axb5 {[%emt 0:00:02]} axb5 {[%emt 0:00:01]} 51. Re2 {[%emt 0:00:10]} g3 {[%emt 0:00:10] Prevents b4.} 52. Re3 {[%emt 0:00:03]} Kc5 {[%emt 0:00:45]} (52... Ka5 $142 53. Rf3 Kb4) 53. Rf3 $19 {[%emt 0:00:01]} Kb4 {[%emt 0:00:09]} 54. Re3 {[%emt 0:00:06]} Qd2 {[%emt 0:00:26]} 55. Rf3 {[%emt 0:00:09]} Qe1 {[%emt 0:00:02]} 56. Rf5 {[%emt 0:00:30]} Ka3 {[%emt 0:00:02] ( -> ...b4)} 57. b4 {[%emt 0:00:23]} Ka4 {[%emt 0:00:13]} 58. Rf4 {[%emt 0:00:02]} Qe5 {[%emt 0:00:16]} 59. Rf3 {[%emt 0:00:16]} Kxb4 {[%emt 0:00:13]} 60. Re3 {[%emt 0:00:01]} Qd4 {[%emt 0:00:07] White must now prevent ...Kc5.} 61. Bd3 {[%emt 0:00:27]} gxf2+ {[%emt 0:00:32] Black mates.} 62. Kxf2 {[%emt 0:00:01]} Kc3 {[%emt 0:00:01]} 63. Ke2 {[%emt 0:00:08]} Qg4+ {[%emt 0:00:01]} 64. Ke1 {[%emt 0:00:28]} Qg5 {[%emt 0:00:14]} ({Weaker is} 64... Qxg2 65. Bf1+ Kd4 66. Bxg2 $11) 65. Kf2 {[%emt 0:00:17]} Kd2 {[%emt 0:00:02]} 66. Rh3 {[%emt 0:00:05]} Qc5+ {[%emt 0:00:02]} 67. Kf1 {[%emt 0:00:05]} Qc1+ {[%emt 0:00:01] Weighted Error Value: White=0.40/Black=0.28 (precise)} (67... b4 $142 68. Bh7 Qc4+ 69. Kg1 Ke2 70. Rf3 Qc1+ 71. Kh2 Qc7+ 72. Kh3 Qxh7 73. Rf6 Qd7+ 74. Kh2 b3 75. Ra6 b2 76. Ra2 Qc7+ 77. Kg1 Qc3 78. Rxb2+ Qxb2 79. Kh2 Qd4 80. g3 Qf2+ 81. Kh1 h3 82. g4 Qg2#) 0-1